Cogmind - Beta 14 X2 @@@ ROGUE MODE // 2024.08.02 @ 21:34:28 Player: Some Pennies Result: Destroyed by D-53 Grenadier with Mini Grenade Launcher Performance ------------- Evolutions (0) 0 Regions Visited (2) 400 Robots Destroyed (38) 190 Value Destroyed (659) 659 Prototype IDs (2) 40 Alien Tech Used (0) 0 Bonus (0) 0 TOTAL SCORE: 1289 Bonus ------- None Cogmind --------- Core Integrity 0/250 Matter 282/300 Energy 99/100 System Corruption 3% Temperature Cool (0) Movement Core (50) Location -10/Mines Parts ------- > --- POWER (1) -------- (None) > --- PROPULSION (2) --- (None) > --- UTILITY (2) ------ (None) > --- WEAPON (2) ------- (None) > --- INVENTORY (5) ---- Aluminum Leg Improved Terrain Scanner Small Laser Light Assault Rifle Mining Laser Peak State ------------ > --- POWER ------------ Ion Engine > --- PROPULSION ------- Light Treads Wheel > --- UTILITY ---------- Improved Heat Sink Huge Storage Unit > --- WEAPON ----------- Assault Rifle Assault Rifle > --- INVENTORY -------- Ion Engine Aluminum Leg Heat Sink Heat Sink Medium Storage Unit Large Storage Unit Structural Scanner Visual Processing Unit Improved Terrain Scanner Seismic Detector Seismic Detector Medium Laser Small Laser Assault Rifle Assault Rifle Light Assault Rifle Light Assault Rifle Light Assault Rifle Rocket Launcher Datajack Mining Laser Hammer [Rating: 11] Favorites ----------- Power Ion Engine Engine Ion Engine Propulsion Light Treads Treads Light Treads Wheel Wheel Utility Huge Storage Unit Device Seismic Detector Storage Huge Storage Unit Weapon Assault Rifle Energy Gun Small Laser Ballistic Gun Assault Rifle Build | -11 -10 -10 ------- Run | Yrd Mat Min Slots Evolved . | . . . Power . | . . . Propulsion . | . . . Utility . | . . . Weapon . | . . . Parts Attached 21 | 8 7 6 Power 2 | 1 . 1 Engine 2 | 1 . 1 Core . | . . . Reactor . | . . . Propulsion 6 | 2 2 2 Treads 4 | 1 2 1 Leg . | . . . Wheel 2 | 1 . 1 Hover . | . . . Flight . | . . . Utility 6 | 3 2 1 Device 4 | 2 1 1 Storage 2 | 1 1 . Processor . | . . . Hackware . | . . . Protection . | . . . Artifact . | . . . Weapon 7 | 2 3 2 Energy Gun 1 | 1 . . Energy Cannon . | . . . Ballistic Gun 6 | 1 3 2 Ballistic Cannon . | . . . Launcher . | . . . Special Weapon . | . . . Impact Weapon . | . . . Slashing Weapon . | . . . Piercing Weapon . | . . . Special Melee Weapon . | . . . Unidentified Prototypes . | . . . Parts Lost 5 | . . 5 Power 1 | . . 1 Propulsion 2 | . . 2 Utility . | . . . Weapon 2 | . . 2 Highest Loss Streak 3 | . . 3 To Critical Strikes . | . . . Average Slot Usage (%) 99 | . 99 98 Engine 13 | . 14 13 Treads 25 | . 27 16 Wheel 2 | . . 10 Device 14 | . 14 14 Storage 14 | . 14 14 Ballistic Gun 27 | . 27 28 Naked Turns 1 | . . 1 Heaviest Build 90 | 14 90 90 Greatest Support 40 | 10 40 40 Greatest Overweight (x) 8 | 1 2 8 Average Overweight (x) 2 | . 1 7 Largest Inventory Capacity 25 | 8 25 25 Average Capacity 23 | 7 24 24 Most Carried 23 | 6 21 23 Average Carried 14 | 4 13 21 Final Capacity 25 | 8 25 5 Final Carried 21 | 6 21 5 Class Distribution -------------------- 100% | Mutant Dominant Class ---------------- Mutant | -10/Materials Mutant | -10/Mines Resources | -11 -10 -10 ----------- Run | Yrd Mat Min Matter Collected 1029 | 316 510 203 Remotely . | . . . Salvage Created 1121 | 133 674 314 Parts 77 | 11 52 14 Haulers Intercepted 2 | . 2 . Recyclers Shooed 2 | . 2 . Parts Field Recycled . | . . . Retrieved Matter . | . . . Parts Self-Destructed . | . . . Prevented . | . . . Kills | -11 -10 -10 ------- Run | Yrd Mat Min Combat Hostiles Destroyed 23 | . 16 7 Guns 23 | . 16 7 Classes Destroyed 10 | 2 7 1 Worker 1 | . . 1 Builder 1 | . 1 . Tunneler 3 | 3 . . Hauler 2 | . 2 . Recycler 3 | 1 1 1 Mechanic 1 | . 1 . Operator 1 | . 1 . Watcher 3 | . 3 . Swarmer 12 | . 9 3 Grunt 11 | . 7 4 Best Kill Streak 3 | 2 3 3 Combat Bots Only 3 | . 3 3 Max Kills in Single Turn 2 | 1 2 1 Gunslinging 1 | . 1 . Exploded . | . . . Melee . | . . . Uniques/NPCs Destroyed . | . . . Combat | -11 -10 -10 -------- Run | Yrd Mat Min Hostile Shots Fired 108 | . 63 45 Missed 25 | . 15 10 Damage Taken 962 | . 429 533 Core 274 | . 47 227 Absorbed by Shields . | . . . Core Remaining (%) 100 | 100 . . Volleys Fired 135 | 12 95 28 Largest 2 | 2 2 2 Hottest 60 | 60 60 40 Shots Fired 273 | 24 192 57 Gun 273 | 24 192 57 Cannon . | . . . Launcher . | . . . Special . | . . . Kinetic 255 | 12 186 57 Thermal 18 | 12 6 . Explosive . | . . . Electromagnetic . | . . . Robot Hit Streak 9 | 6 9 6 Robot Miss Streak 4 | 3 4 4 Penetration Max . | . . . Secondary Targets 4 | . 3 1 Max Gunslinging Chain 1 | . 1 1 Shots Hit Robots 167 | 14 118 35 Core Hits 70 | 5 49 16 Critical Kills . | . . . Critical Parts Destroyed . | . . . Critical Strikes . | . . . Melee Attacks . | . . . Impact . | . . . Slashing . | . . . Piercing . | . . . Sneak Attacks . | . . . Combat Hostiles . | . . . Follow-up Attacks . | . . . Damage Inflicted 1953 | 174 1304 475 Guns 1953 | 174 1304 475 Cannons . | . . . Explosions . | . . . Melee . | . . . Ramming . | . . . Kinetic 1855 | 96 1284 475 Thermal 98 | 78 20 . Explosive . | . . . Electromagnetic . | . . . Impact . | . . . Slashing . | . . . Piercing . | . . . Highest Corruption 3 | . 3 3 Average Corruption 2 | . 2 3 Corruption Purged . | . . . Corruption Blocked . | . . . Effects 50 | . 37 13 Message Errors 14 | . 9 5 Matter Fused 11 | . 11 . Heat Flow Errors 4 | . . 4 Energy Discharges 6 | . 4 2 Parts Fused 1 | . 1 . Data Loss (minor) 4 | . 3 1 Data Loss (major) 3 | . 3 . Misfires 5 | . 4 1 Weapon Failures 2 | . 2 . Overload Shots . | . . . Overflow Damage . | . . . Projectiles . | . . . Explosions . | . . . Melee . | . . . Knockbacks . | . . . Impact . | . . . Kinetic . | . . . Secondary . | . . . Self-Inflicted Damage . | . . . Shots . | . . . Rammed . | . . . Targets Rammed . | . . . Kicked . | . . . Crushed . | . . . Highest Temperature 296 | . 12 296 Average Temperature 89 | . 6 126 Received Heat Transfer 330 | . 102 228 Siege Activations . | . . . Robots Corrupted . | . . . Combat Hostiles . | . . . Parts Fried . | . . . Impact Corruptions . | . . . Robots Melted . | . . . Combat Hostiles . | . . . Parts Melted . | . . . Heat Transferred 225 | 175 50 . Parts Sabotaged . | . . . Parts Stolen . | . . . Parts Stripped . | . . . Power Chain Reactions . | . . . Alert | -11 -10 -10 ------- Run | Yrd Mat Min Peak Influence 140 | 20 140 136 Initial 31 | . 13 31 Average 66 | 9 67 77 Maximum Alert Level . | . . . Low Security (%) 100 | 100 100 100 Level 1 . | . . . Level 2 . | . . . Level 3 . | . . . Level 4 . | . . . Level 5 . | . . . High Security . | . . . Max Security . | . . . Squads Dispatched 4 | . 4 . Investigation 3 | . 3 . Extermination . | . . . Reinforcement 1 | . 1 . Assault . | . . . Garrison . | . . . Intercept . | . . . Searches Triggered . | . . . Construction Impeded . | . . . Haulers Reinforced . | . . . Active Scanning Responses . | . . . Cargo Convoy Interrupts . | . . . Stealth | -11 -10 -10 --------- Run | Yrd Mat Min Distress Signals 1 | . 1 . Communications Jammed . | . . . Distress Signals . | . . . Times Spotted 47 | . 36 11 Peak Tracking Total 4 | . 4 4 Tactical Retreats . | . . . Traps | -11 -10 -10 ------- Run | Yrd Mat Min Traps Triggered 3 | . 3 . Indirectly . | . . . Trap Hack Attempts . | . . . Triggered . | . . . Disarmed . | . . . Reprogrammed . | . . . Reused . | . . . Traps Extracted . | . . . Installed . | . . . Triggered . | . . . Machines | -11 -10 -10 ---------- Run | Yrd Mat Min Machines Disabled . | . . . Max in Single Turn . | . . . Machines Repaired . | . . . Machines Dismantled . | . . . Machines Sabotaged . | . . . Overloaded Fab Kills . | . . . Hacking | -11 -10 -10 --------- Run | Yrd Mat Min Machines Accessed 7 | . 7 . Terminals 5 | . 5 . Fabricators . | . . . Repair Stations . | . . . Recycling Units 2 | . 2 . Scanalyzers . | . . . Garrison Access . | . . . Total Hacks 24 | . 24 . Successful 12 | . 12 . Failed 12 | . 12 . Catastrophic 1 | . 1 . Database Lockouts . | . . . Manual 12 | . 12 . Terminals 19 | . 19 . Fabricators . | . . . Repair Stations . | . . . Recycling Units 5 | . 5 . Scanalyzers . | . . . Garrison Access . | . . . Terminal Hacks 8 | . 8 . Robot Analysis 3 | . 3 . Prototype ID Bank 1 | . 1 . Branch Access Points 1 | . 1 . Emergency Access Points 1 | . 1 . Locate Traps 1 | . 1 . Zone Layout 1 | . 1 . Fabricator Hacks . | . . . Repair Station Hacks . | . . . Recycling Unit Hacks 2 | . 2 . Retrieve Components 2 | . 2 . Scanalyzer . | . . . Garrison Access Hacks . | . . . Unauthorized Hacks 2 | . 2 . Terminals . | . . . Fabricators . | . . . Repair Stations . | . . . Recycling Units 2 | . 2 . Tunnel 2 | . 2 . Scanalyzers . | . . . Garrison Access . | . . . Data Cores Recovered . | . . . Used . | . . . Hacking Detections 5 | . 5 . Full Trace Events 1 | . 1 . Feedback Events . | . . . Feedback Blocked . | . . . Robot Schematics Acquired . | . . . Robots Built . | . . . Authchips . | . . . Time . | . . . Total Robot Build Rating . | . . . Part Schematics Acquired . | . . . Parts Built . | . . . Authchips . | . . . Time . | . . . Total Part Build Rating . | . . . Parts Repaired . | . . . Time . | . . . Parts Recycled . | . . . Recycled Matter . | . . . Retrieved Matter . | . . . Retrieved Components 18 | . 18 . Parts Scanalyzed . | . . . Part Schematics Acquired . | . . . Parts Damaged . | . . . Bothacking | -11 -10 -10 ------------ Run | Yrd Mat Min Used RIF Installer . | . . . Robots Hacked . | . . . Non-combat . | . . . Combat . | . . . Robot Hacks Applied . | . . . Relay Couplers Released . | . . . Fabnet Peak Effective % . | . . . Robots Rewired . | . . . Allies Hacked . | . . . Hacks Repelled . | . . . Allies | -11 -10 -10 -------- Run | Yrd Mat Min Total Allies . | . . . Largest Group . | . . . Highest-Rated Group . | . . . Highest-Rated Ally . | . . . Total Orders . | . . . Ally Attacks . | . . . Total Damage . | . . . Kills . | . . . Allies Corrupted . | . . . Allies Melted . | . . . Intel | -11 -10 -10 ------- Run | Yrd Mat Min Robot Analysis Total 3 | . 3 . Derelict Logs Recovered 1 | . . 1 Drone Launches . | . . . Drone Recoveries . | . . . Exploration | -11 -10 -10 ------------- Run | Yrd Mat Min Turns Passed 3525 | 169 2687 669 Spaces Moved 1163 | 122 785 256 Core 3 | 1 . 2 Treads 776 | . 735 41 Legs . | . . . Wheels 384 | 121 50 213 Hover . | . . . Flight . | . . . Fastest Speed 50 | 50 95 50 Average Speed 261 | 93 301 219 Slowest Speed 480 | 95 320 480 Overloaded Moves . | . . . Propulsion Burnouts . | . . . Robots Hopped . | . . . Cave-ins Triggered . | . . . Exploration Rate (%) 52 | 4 85 67 Regions Visited 2 Branch Regions 1 Pre-discovered Areas 2 | . 2 . Known Exits Taken 1 | . 1 . Unknown Exits Taken 1 | 1 . . Scrap Searched 1 | . . 1 Spaces Dug . | . . . Terrain Destroyed . | . . . Melee . | . . . Projectile . | . . . AOE . | . . . Terrain Rammed . | . . . Walls Destroyed . | . . . Machines Disabled . | . . . Actions | -11 -10 -10 --------- Run | Yrd Mat Min Total 1391 | 150 936 305 Wait 42 | . 31 11 Move 1161 | 121 784 256 Hop . | . . . Pick Up 27 | 8 15 4 Fast Attach 8 | 6 2 . Attach 6 | 1 . 5 Detach . | . . . Swap 7 | 1 5 1 Drop 5 | 1 4 . Fire 135 | 12 95 28 Melee . | . . . Ram . | . . . Kick . | . . . Crush . | . . . Escape Stasis . | . . . Rewire . | . . . Trap . | . . . Miscellaneous . | . . . Route ------- -11/Scrapyard -10/Materials (discovered 5 exits: [*Mat x3] / *Min x2) -10/Mines (discovered 1 exit: [*Mat]) History --------- Turn | Location | Event 13 | -11/Scrapyard | Discovered new exit (range 14) 170 | -11/Scrapyard | Entered Materials 309 | -10/Materials | Build established: Mutant 457 | -10/Materials | Discovered new exit (range 4) 889 | -10/Materials | Discovered new exit (range 11) 1906 | -10/Materials | Identified exit to Mines 2271 | -10/Materials | Discovered new exit (range 6) 2652 | -10/Materials | Discovered new exit (range 15) 2857 | -10/Materials | Entered Mines 3077 | -10/Mines | Received a Rocket Launcher from a helpful Derelict 3379 | -10/Mines | Discovered new exit (range 9) 3406 | -10/Mines | Core integrity fell below 50% 3446 | -10/Mines | Lost 3 parts (1p2w) 3493 | -10/Mines | Learned Materials stockpile data 3494 | -10/Mines | Assembled infested the area 3525 | -10/Mines | Released all parts (7) 3526 | -10/Mines | Destroyed by D-53 Grenadier with Mini Grenade Launcher Last Messages --------------- 03428_ K-01 Serf collects debris. 03493_ System corrupted: Energy discharge (-100). 03493_ Acquired derelict log, extracted data. Data stored: Materials stockpile data. 03494_ ALERT: Infestation in the mines, dispatching Demolisher response squad. 03504_ K-01 Serf destroyed. 03507_ Acquired 13 matter. 03515_ System corrupted: Heat flow error (+272). 03521_ T-07 Excavator is excavating. 03522_ C-30 ARC bursts open, deploying its payload. 03522_ D-53 Grenadier unfolds itself. 03525_ Released Lgt. Treads. 03525_ Released Huge Storage Unit. 03525_ Released Wheel. 03525_ Released Ion Engine. 03525_ Released Imp. Heat Sink. 03525_ Released Assault Rifle. Map ----- +----------------------------------------------------+ | | | | | | | ?????????????????????????????????????????????????? | | ?????????????????????????????????????????????????? | | ?????????????????????????????????????????????????? | | ?????????????????????????????????????????????????? | | ?????????????????????????????????????????????????? | | ?????????????????????????????????????????????????? | | ?????????????????????????????????????????????????? | | ?????????????????????????????????????????????????? | | ?????????????????????????????????????????????????? | | ????????????????????????###??????????????????????? | | ???????????????????????#t #??????????????????????? | | ???????????????????????# #??????????????????????? | | ???????????????????????# #??????????????????????? | | ???????????????####????# #?????????????????????? | | ??????????????## #???# ##?###????????###????? | | ??????????????# ??? ## ##??????## #???? | | ??????????????# ??? #??????# ##?# | | ??????????????# #???# #??????? ## | | ??????????????# ##### #????????# | | ???????????????# ## #????????? < | | ????????????????# #?????????? # | | ?????????????????# #??????????? #? | | ????????????????## @! #????????????# #?? | | ???????????????## =[![* #???????????## #?? | | ?????????####### [ =]! #?????####??# #??? | | ?????????# !![!! #????## ##?# #??? | | ?????????# s [/!###??### ### #### | | ?????????# ## d#######???## | | ?????????# ?## d ##???????## #### | | ?????????# ??# %= ##?###### ##### ##??# | | ??????#??# #### ! ### ##???####???# | | ??????? ?# ### ##???????????# | | ??????? ## ?# #????????????# | | ???????? ??# ######## ##????????????# | | ????????? ??## #####??####?????????????# | | ????????? ???## ## ##??????????????????# | | ????????## #????## ######?????????????# | | ??????????# #????## ##????????????# | | ??????????# #???## % #?####???????# | | ??????????# #??## % ### ##?###### | | ??????##### #### ### ## | | ????## ## ! | | ???# # ##### ## * | | ???# ! ##?## ####### ## ## | | #??#% #??## ##?????# ############? | | # ??# #???###?????## ##??????????? | | # ??# ## ##???????????# ####???????? | +----------------------------------------------------+ Best States ------------- Heat Dissipation 39 Energy Generation 10 Energy Capacity 250 Matter Stores 300 Matter Capacity 300 Sight Range 16 Terrain Scan Range 16 Terrain Scan Density 10 Evasion (%) 44 Recoil Reduction 2 Item Schematics ----------------- None Robot Schematics ------------------ None Fabricated ------------ Nothing Alien Tech Used ----------------- None Achievements -------------- None Challenges ------------ None Game ------ Seed ResetBombardmentLoader Manual? 0 Play Time 00:13:45 Cumulative 205.3 hours Start 2024.08.02 @ 21:23:07 End 2024.08.02 @ 21:34:28 Sessions 1 Manual Loads 0 Difficulty Rogue Special Mode None Game No. 173 Rogue 168 Adventurer 5 Explorer 0 Win Type - Total 4 Types 2/0/2/0/0/0/0/0/0 Lore% 62 Gallery% 77 Achievement% 60 Wizard Run 0 Options --------- Layout 2 ASCII 0 Keyboard 0 Movement Mouse Keybinds 0 Fullscreen 2 Font 24/Smallcaps Map View 50x44 Zoom Use 0% Tactical HUD 1 Map Filters NONE Filters NONE Steam 1 RUN: 25a5c7d9-e797-4540-b196-ec5f035086df